[Event "Titled Tuesday Blitz January 03 Late 2023"]
[White "Leenhouts, Koen"]
[Black "Donskov, Anatoly"]
[WhiteFideId "1008439"]
[BlackFideId "24143413"]
[WhiteElo "2447"]
[BlackElo "2279"]
[Result "1/2-1/2"]
[Round "08"]
[TimeControl "180+2"]
[Date "2023.01.03"]
[WhiteClock "0:00:17"]
[BlackClock "0:01:06"]

1. e4 {[%clk 0:03:00]}  c5 {[%clk 0:03:00]} 2. Nf3 {[%clk 0:03:00]}  Nc6 {[%clk 0:03:01]} 3. c3 {[%clk 0:02:58]}  Nf6 {[%clk 0:03:00]} 4. e5 {[%clk 0:02:58]}  Nd5 {[%clk 0:03:01]} 5. d4 {[%clk 0:02:58]}  cxd4 {[%clk 0:03:02]} 6. cxd4 {[%clk 0:02:59]}  e6 {[%clk 0:03:02]} 7. Nc3 {[%clk 0:02:58]}  d6 {[%clk 0:03:03]} 8. Bc4 {[%clk 0:02:54]}  Nxc3 {[%clk 0:03:01]} 9. bxc3 {[%clk 0:02:53]}  dxe5 {[%clk 0:03:02]} 10. O-O {[%clk 0:02:52]}  Be7 {[%clk 0:03:00]} 11. dxe5 {[%clk 0:02:49]}  Qxd1 {[%clk 0:02:59]} 12. Rxd1 {[%clk 0:02:49]}  O-O {[%clk 0:02:53]} 13. a4 {[%clk 0:02:44]}  b6 {[%clk 0:02:48]} 14. Bb5 {[%clk 0:02:37]}  Na5 {[%clk 0:02:44]} 15. Be3 {[%clk 0:02:29]}  Bb7 {[%clk 0:02:45]} 16. Rd7 {[%clk 0:02:26]}  Bxf3 {[%clk 0:02:43]} 17. gxf3 {[%clk 0:02:22]}  Bc5 {[%clk 0:02:42]} 18. Bxc5 {[%clk 0:02:18]}  bxc5 {[%clk 0:02:43]} 19. Rad1 {[%clk 0:02:16]}  g5 {[%clk 0:02:42]} 20. Rc7 {[%clk 0:02:09]}  Rfc8 {[%clk 0:02:41]} 21. Rdd7 {[%clk 0:02:10]}  Rxc7 {[%clk 0:02:41]} 22. Rxc7 {[%clk 0:02:10]}  Nb3 {[%clk 0:02:40]} 23. Bc6 {[%clk 0:02:07]}  Rd8 {[%clk 0:02:33]} 24. Rxa7 {[%clk 0:02:06]}  Rd1+ {[%clk 0:02:29]} 25. Kg2 {[%clk 0:02:05]}  Ra1 {[%clk 0:02:29]} 26. Be8 {[%clk 0:01:59]}  Nc1 {[%clk 0:02:10]} 27. Bxf7+ {[%clk 0:01:52]}  Kf8 {[%clk 0:02:10]} 28. Bxe6 {[%clk 0:01:51]}  Nd3 {[%clk 0:02:10]} 29. Rf7+ {[%clk 0:00:37]}  Ke8 {[%clk 0:02:10]} 30. Bc4 {[%clk 0:00:35]}  Nxe5 {[%clk 0:01:58]} 31. Rf5 {[%clk 0:00:24]}  Nxc4 {[%clk 0:01:58]} 32. Rxc5 {[%clk 0:00:24]}  Rxa4 {[%clk 0:01:56]} 33. Rxg5 {[%clk 0:00:24]}  Kf7 {[%clk 0:01:53]} 34. Rg4 {[%clk 0:00:20]}  Nb6 {[%clk 0:01:53]} 35. Rxa4 {[%clk 0:00:17]}  Nxa4 {[%clk 0:01:54]} 36. c4 {[%clk 0:00:18]}  Nb6 {[%clk 0:01:53]} 37. c5 {[%clk 0:00:18]}  Na4 {[%clk 0:01:52]} 38. c6 {[%clk 0:00:18]}  Ke6 {[%clk 0:01:50]} 39. Kg3 {[%clk 0:00:18]}  Kd6 {[%clk 0:01:06]} 40. Kf4 {[%clk 0:00:19]}  Kxc6 {[%clk 0:01:07]} 41. Kg5 {[%clk 0:00:19]}  Kd6 {[%clk 0:01:04]} 42. Kh6 {[%clk 0:00:17]}  Ke6 {[%clk 0:01:04]} 43. Kxh7 {[%clk 0:00:17]}  Kf7 {[%clk 0:01:04]} 44. Kh6 {[%clk 0:00:17]}  Nc5 {[%clk 0:00:59]} 45. Kg5 {[%clk 0:00:17]}  Nd3 {[%clk 0:01:00]} 46. h4 {[%clk 0:00:14]}  Nxf2 {[%clk 0:01:00]} 47. h5 {[%clk 0:00:14]}  Nd3 {[%clk 0:01:01]} 48. Kf5 {[%clk 0:00:14]}  Ne1 {[%clk 0:01:00]} 49. f4 {[%clk 0:00:14]}  Ng2 {[%clk 0:01:00]} 50. Kg5 {[%clk 0:00:14]}  Nxf4 {[%clk 0:01:00]} 51. Kxf4 {[%clk 0:00:15]}  Kg7 {[%clk 0:01:01]} 52. Kg4 {[%clk 0:00:15]}  Kh7 {[%clk 0:01:02]} 53. Kh4 {[%clk 0:00:15]}  Kg7 {[%clk 0:01:03]} 54. Kg5 {[%clk 0:00:16]}  Kh7 {[%clk 0:01:04]} 55. h6 {[%clk 0:00:16]}  Kh8 {[%clk 0:01:04]} 56. Kg6 {[%clk 0:00:17]}  Kg8 {[%clk 0:01:05]} 57. h7+ {[%clk 0:00:18]}  Kh8 {[%clk 0:01:06]} 58. Kh6 {[%clk 0:00:17]} 1/2-1/2


[Site "https://www.chess.com"]

[Event "Titled Tuesday Blitz January 03 Late 2023"]
[White "Klose, Eli"]
[Black "Horcajuelo Rocamora, Martin"]
[WhiteFideId "16242955"]
[BlackFideId "24573027"]
[WhiteElo "1519"]
[BlackElo "2107"]
[Result "1-0"]
[Round "08"]
[TimeControl "180+2"]
[Date "2023.01.03"]
[WhiteClock "0:01:25"]
[BlackClock "0:00:34"]

1. e4 {[%clk 0:02:57]}  e5 {[%clk 0:02:59]} 2. Nf3 {[%clk 0:02:56]}  Nc6 {[%clk 0:02:55]} 3. d4 {[%clk 0:02:57]}  exd4 {[%clk 0:02:55]} 4. Bc4 {[%clk 0:02:57]}  Bc5 {[%clk 0:02:47]} 5. Ng5 {[%clk 0:02:53]}  d5 {[%clk 0:02:46]} 6. Bxd5 {[%clk 0:02:47]}  Nh6 {[%clk 0:02:31]} 7. Nxf7 {[%clk 0:02:46]}  Nxf7 {[%clk 0:02:30]} 8. Bxf7+ {[%clk 0:02:45]}  Kxf7 {[%clk 0:02:31]} 9. Qh5+ {[%clk 0:02:45]}  g6 {[%clk 0:02:31]} 10. Qxc5 {[%clk 0:02:46]}  Re8 {[%clk 0:02:30]} 11. Nd2 {[%clk 0:02:39]}  Re5 {[%clk 0:02:28]} 12. Qa3 {[%clk 0:02:35]}  Kg7 {[%clk 0:02:24]} 13. O-O {[%clk 0:02:34]}  Rh5 {[%clk 0:02:18]} 14. Qg3 {[%clk 0:02:30]}  Qg5 {[%clk 0:02:10]} 15. Qxc7+ {[%clk 0:02:26]}  Qe7 {[%clk 0:02:03]} 16. Qxe7+ {[%clk 0:02:25]}  Nxe7 {[%clk 0:02:04]} 17. Nf3 {[%clk 0:02:26]}  Nc6 {[%clk 0:02:04]} 18. h3 {[%clk 0:02:18]}  Rc5 {[%clk 0:02:00]} 19. Rd1 {[%clk 0:02:03]}  Rxc2 {[%clk 0:01:59]} 20. Nxd4 {[%clk 0:02:03]}  Nxd4 {[%clk 0:02:00]} 21. Rxd4 {[%clk 0:02:04]}  Be6 {[%clk 0:02:00]} 22. b3 {[%clk 0:02:00]}  Rac8 {[%clk 0:02:00]} 23. Be3 {[%clk 0:02:00]}  Kf7 {[%clk 0:01:56]} 24. Ra4 {[%clk 0:01:55]}  a6 {[%clk 0:01:54]} 25. Rd1 {[%clk 0:01:52]}  Re2 {[%clk 0:01:48]} 26. Rd6 {[%clk 0:01:44]}  Rcc2 {[%clk 0:01:43]} 27. Rb6 {[%clk 0:01:44]}  Rc7 {[%clk 0:01:38]} 28. Rab4 {[%clk 0:01:42]}  Bc8 {[%clk 0:01:37]} 29. a4 {[%clk 0:01:42]}  Re1+ {[%clk 0:01:33]} 30. Kh2 {[%clk 0:01:41]}  Re2 {[%clk 0:01:30]} 31. Rd4 {[%clk 0:01:39]}  Rc3 {[%clk 0:01:26]} 32. b4 {[%clk 0:01:37]}  Ra2 {[%clk 0:01:07]} 33. a5 {[%clk 0:01:37]}  Rb2 {[%clk 0:01:02]} 34. Rd8 {[%clk 0:01:36]}  Rc4 {[%clk 0:00:58]} 35. Bc5 {[%clk 0:01:33]}  Be6 {[%clk 0:00:35]} 36. Rf8+ {[%clk 0:01:25]}  Kg7 {[%clk 0:00:34]} 37. Rxb7+ {[%clk 0:01:25]}  Kh6 {[%clk 0:00:35]} 38. Be3+ {[%clk 0:01:26]}  g5 {[%clk 0:00:34]} 39. Rf6+ {[%clk 0:01:25]} 1-0


[Site "https://www.chess.com"]

[Event "Titled Tuesday Blitz January 03 Late 2023"]
[White "Broca Jimenez, Fernando"]
[Black "gshwbedhkhd"]
[WhiteFideId "5104742"]
[WhiteElo "2075"]
[BlackElo "2511"]
[Result "1-0"]
[Round "08"]
[TimeControl "180+2"]
[Date "2023.01.03"]
[WhiteClock "0:00:21"]
[BlackClock "0:00:04"]

1. e4 {[%clk 0:03:00]}  c5 {[%clk 0:02:58]} 2. Nf3 {[%clk 0:02:59]}  e6 {[%clk 0:02:58]} 3. d4 {[%clk 0:03:00]}  cxd4 {[%clk 0:02:59]} 4. Nxd4 {[%clk 0:03:00]}  Nf6 {[%clk 0:02:59]} 5. Bd3 {[%clk 0:02:59]}  Nc6 {[%clk 0:03:00]} 6. Nb3 {[%clk 0:02:56]}  Be7 {[%clk 0:02:57]} 7. O-O {[%clk 0:02:50]}  d5 {[%clk 0:02:57]} 8. exd5 {[%clk 0:02:45]}  Nxd5 {[%clk 0:02:57]} 9. Bd2 {[%clk 0:02:45]}  O-O {[%clk 0:02:56]} 10. Nc3 {[%clk 0:02:44]}  Ndb4 {[%clk 0:02:54]} 11. Be4 {[%clk 0:02:43]}  f5 {[%clk 0:02:53]} 12. Bf3 {[%clk 0:02:43]}  e5 {[%clk 0:02:50]} 13. a3 {[%clk 0:02:42]}  Na6 {[%clk 0:02:49]} 14. Bd5+ {[%clk 0:02:28]}  Kh8 {[%clk 0:02:48]} 15. Qe2 {[%clk 0:02:06]}  Bf6 {[%clk 0:02:37]} 16. Rad1 {[%clk 0:01:58]}  Nd4 {[%clk 0:02:21]} 17. Qd3 {[%clk 0:01:52]}  e4 {[%clk 0:02:16]} 18. Nxe4 {[%clk 0:01:32]}  fxe4 {[%clk 0:02:12]} 19. Bxe4 {[%clk 0:01:33]}  Nxb3 {[%clk 0:02:09]} 20. Qxb3 {[%clk 0:01:33]}  Nc5 {[%clk 0:02:08]} 21. Qc4 {[%clk 0:01:30]}  Nxe4 {[%clk 0:02:07]} 22. Qxe4 {[%clk 0:01:30]}  Qe8 {[%clk 0:02:06]} 23. Qb4 {[%clk 0:01:28]}  Qg6 {[%clk 0:02:03]} 24. c4 {[%clk 0:01:13]}  Bg4 {[%clk 0:01:51]} 25. f3 {[%clk 0:01:10]}  Bf5 {[%clk 0:01:44]} 26. Be3 {[%clk 0:01:02]}  Rfe8 {[%clk 0:01:40]} 27. Qxb7 {[%clk 0:00:54]}  Rab8 {[%clk 0:01:37]} 28. Qxa7 {[%clk 0:00:54]}  Rxb2 {[%clk 0:01:34]} 29. Bf2 {[%clk 0:00:51]}  Bh4 {[%clk 0:01:23]} 30. g3 {[%clk 0:00:49]}  Bf6 {[%clk 0:01:07]} 31. Rfe1 {[%clk 0:00:45]}  Rbe2 {[%clk 0:00:57]} 32. Rxe2 {[%clk 0:00:44]}  Rxe2 {[%clk 0:00:58]} 33. c5 {[%clk 0:00:39]}  Bc2 {[%clk 0:00:38]} 34. Rc1 {[%clk 0:00:29]}  h6 {[%clk 0:00:26]} 35. c6 {[%clk 0:00:28]}  Qd3 {[%clk 0:00:13]} 36. c7 {[%clk 0:00:25]}  Re8 {[%clk 0:00:11]} 37. Qb8 {[%clk 0:00:20]}  Qg6 {[%clk 0:00:05]} 38. c8=Q {[%clk 0:00:19]}  Rxc8 {[%clk 0:00:05]} 39. Qxc8+ {[%clk 0:00:20]}  Kh7 {[%clk 0:00:04]} 40. Qxc2 {[%clk 0:00:21]} 1-0


[Site "https://www.chess.com"]

[Event "Titled Tuesday Blitz January 03 Late 2023"]
[White "Schmidt, Harald"]
[Black "Weetik, Vjacheslav"]
[WhiteFideId "4648358"]
[BlackFideId "4153472"]
[WhiteElo "2347"]
[BlackElo "2423"]
[Result "1-0"]
[Round "08"]
[TimeControl "180+2"]
[Date "2023.01.03"]
[WhiteClock "0:01:31"]
[BlackClock "0:01:25"]

1. c4 {[%clk 0:03:00]}  e6 {[%clk 0:02:55]} 2. Nc3 {[%clk 0:02:58]}  d5 {[%clk 0:02:55]} 3. e3 {[%clk 0:02:56]}  Nf6 {[%clk 0:02:55]} 4. Nf3 {[%clk 0:02:55]}  c5 {[%clk 0:02:55]} 5. cxd5 {[%clk 0:02:54]}  exd5 {[%clk 0:02:55]} 6. d4 {[%clk 0:02:55]}  a6 {[%clk 0:02:56]} 7. Be2 {[%clk 0:02:51]}  Nc6 {[%clk 0:02:55]} 8. O-O {[%clk 0:02:51]}  Bd6 {[%clk 0:02:56]} 9. b3 {[%clk 0:02:49]}  O-O {[%clk 0:02:54]} 10. Bb2 {[%clk 0:02:48]}  Re8 {[%clk 0:02:49]} 11. Na4 {[%clk 0:02:44]}  cxd4 {[%clk 0:02:42]} 12. Nxd4 {[%clk 0:02:40]}  Ne5 {[%clk 0:02:42]} 13. Rc1 {[%clk 0:02:27]}  h5 {[%clk 0:02:39]} 14. Nc5 {[%clk 0:02:20]}  Bb8 {[%clk 0:02:23]} 15. Nd3 {[%clk 0:02:14]}  Neg4 {[%clk 0:02:21]} 16. h3 {[%clk 0:02:10]}  Qd6 {[%clk 0:02:20]} 17. Nf4 {[%clk 0:02:01]}  g5 {[%clk 0:02:13]} 18. hxg4 {[%clk 0:01:58]}  gxf4 {[%clk 0:02:13]} 19. exf4 {[%clk 0:01:52]}  Qxf4 {[%clk 0:02:10]} 20. g3 {[%clk 0:01:51]}  Qh6 {[%clk 0:02:01]} 21. Rxc8 {[%clk 0:01:40]}  Rxc8 {[%clk 0:02:00]} 22. Nf5 {[%clk 0:01:39]}  Qg5 {[%clk 0:01:25]} 23. f4 {[%clk 0:01:31]} 1-0


[Site "https://www.chess.com"]

[Event "Titled Tuesday Blitz January 03 Late 2023"]
[White "Golubev, Mikhail"]
[Black "Lorenzo De La Riva, Lazaro"]
[WhiteFideId "14100983"]
[BlackFideId "2268809"]
[WhiteElo "2461"]
[BlackElo "2404"]
[Result "1-0"]
[Round "08"]
[TimeControl "180+2"]
[Date "2023.01.03"]
[WhiteClock "0:00:08"]
[BlackClock "0:00:19"]

1. e4 {[%clk 0:03:00]}  e6 {[%clk 0:02:56]} 2. d4 {[%clk 0:03:00]}  d5 {[%clk 0:02:56]} 3. Nc3 {[%clk 0:03:00]}  Bb4 {[%clk 0:02:56]} 4. e5 {[%clk 0:03:00]}  c5 {[%clk 0:02:52]} 5. a3 {[%clk 0:02:59]}  Bxc3+ {[%clk 0:02:52]} 6. bxc3 {[%clk 0:02:59]}  Nc6 {[%clk 0:02:52]} 7. a4 {[%clk 0:02:53]}  Qa5 {[%clk 0:02:49]} 8. Bd2 {[%clk 0:02:52]}  c4 {[%clk 0:02:46]} 9. g3 {[%clk 0:02:47]}  Bd7 {[%clk 0:02:43]} 10. Bg2 {[%clk 0:02:47]}  O-O-O {[%clk 0:02:43]} 11. Ne2 {[%clk 0:02:41]}  h5 {[%clk 0:02:43]} 12. h4 {[%clk 0:02:40]}  f6 {[%clk 0:02:33]} 13. exf6 {[%clk 0:02:39]}  gxf6 {[%clk 0:02:28]} 14. O-O {[%clk 0:02:38]}  e5 {[%clk 0:02:26]} 15. dxe5 {[%clk 0:02:35]}  fxe5 {[%clk 0:02:27]} 16. Bg5 {[%clk 0:02:34]}  Nge7 {[%clk 0:02:22]} 17. Rb1 {[%clk 0:02:26]}  Bg4 {[%clk 0:02:00]} 18. Qd2 {[%clk 0:02:13]}  Rd7 {[%clk 0:01:53]} 19. Rb5 {[%clk 0:02:04]}  Qxa4 {[%clk 0:01:53]} 20. Rfb1 {[%clk 0:02:04]}  e4 {[%clk 0:01:19]} 21. Nd4 {[%clk 0:01:54]}  Rf8 {[%clk 0:01:06]} 22. Bxe7 {[%clk 0:01:42]}  Nxe7 {[%clk 0:01:02]} 23. Qc1 {[%clk 0:01:39]}  Qa6 {[%clk 0:00:58]} 24. Qb2 {[%clk 0:01:15]}  b6 {[%clk 0:00:50]} 25. Qb4 {[%clk 0:00:57]}  Rf6 {[%clk 0:00:46]} 26. Rc5+ {[%clk 0:00:50]}  Kd8 {[%clk 0:00:42]} 27. Rb5 {[%clk 0:00:44]}  Qc8 {[%clk 0:00:38]} 28. Ra1 {[%clk 0:00:39]}  Ke8 {[%clk 0:00:36]} 29. Qb2 {[%clk 0:00:36]}  Qc7 {[%clk 0:00:35]} 30. Qc1 {[%clk 0:00:33]}  Qe5 {[%clk 0:00:30]} 31. Qe3 {[%clk 0:00:25]}  Kf7 {[%clk 0:00:29]} 32. Rbb1 {[%clk 0:00:24]}  a5 {[%clk 0:00:25]} 33. f3 {[%clk 0:00:23]}  Be6 {[%clk 0:00:23]} 34. f4 {[%clk 0:00:22]}  Qc7 {[%clk 0:00:21]} 35. Qe2 {[%clk 0:00:21]}  Bg4 {[%clk 0:00:21]} 36. Qe3 {[%clk 0:00:20]}  Qc5 {[%clk 0:00:21]} 37. Kh2 {[%clk 0:00:19]}  Nf5 {[%clk 0:00:20]} 38. Nxf5 {[%clk 0:00:17]}  Rxf5 {[%clk 0:00:21]} 39. Qxc5 {[%clk 0:00:17]}  bxc5 {[%clk 0:00:22]} 40. Rxa5 {[%clk 0:00:17]}  Rf6 {[%clk 0:00:21]} 41. Rxc5 {[%clk 0:00:16]}  Rfd6 {[%clk 0:00:19]} 42. Rbb5 {[%clk 0:00:15]}  Kf6 {[%clk 0:00:19]} 43. Rb8 {[%clk 0:00:14]}  Bf5 {[%clk 0:00:19]} 44. Rf8+ {[%clk 0:00:14]}  Rf7 {[%clk 0:00:20]} 45. Rxf7+ {[%clk 0:00:13]}  Kxf7 {[%clk 0:00:20]} 46. Kg1 {[%clk 0:00:13]}  Ke6 {[%clk 0:00:20]} 47. Kf2 {[%clk 0:00:13]}  Bg4 {[%clk 0:00:21]} 48. Ke3 {[%clk 0:00:13]}  Bd1 {[%clk 0:00:22]} 49. Kd4 {[%clk 0:00:11]}  Bg4 {[%clk 0:00:23]} 50. Bf1 {[%clk 0:00:11]}  Bf3 {[%clk 0:00:22]} 51. Ra5 {[%clk 0:00:11]}  Kf5 {[%clk 0:00:22]} 52. Bh3+ {[%clk 0:00:10]}  Kf6 {[%clk 0:00:22]} 53. Ra8 {[%clk 0:00:09]}  Kf7 {[%clk 0:00:20]} 54. Ke5 {[%clk 0:00:08]}  Rb6 {[%clk 0:00:19]} 55. Ra7+ {[%clk 0:00:08]}  Kg6 {[%clk 0:00:18]} 56. Bf5+ {[%clk 0:00:08]}  Kh6 {[%clk 0:00:19]} 57. Rh7# {[%clk 0:00:08]} 1-0


[Site "https://www.chess.com"]

[Event "Titled Tuesday Blitz January 03 Late 2023"]
[White "Pinheiro, Iung Alicio de O."]
[Black "Della Corte, Alessandro"]
[WhiteFideId "2104350"]
[BlackFideId "813540"]
[WhiteElo "2306"]
[BlackElo "2160"]
[Result "0-1"]
[Round "08"]
[TimeControl "180+2"]
[Date "2023.01.03"]
[WhiteClock "0:00:03"]
[BlackClock "0:00:17"]

1. e4 {[%clk 0:02:53]}  c5 {[%clk 0:02:59]} 2. Nf3 {[%clk 0:02:52]}  d6 {[%clk 0:02:59]} 3. d4 {[%clk 0:02:51]}  cxd4 {[%clk 0:03:00]} 4. Nxd4 {[%clk 0:02:51]}  Nf6 {[%clk 0:03:01]} 5. Nc3 {[%clk 0:02:52]}  a6 {[%clk 0:03:01]} 6. Qd3 {[%clk 0:02:40]}  g6 {[%clk 0:03:00]} 7. Bg5 {[%clk 0:02:38]}  Bg7 {[%clk 0:03:00]} 8. Be2 {[%clk 0:02:37]}  O-O {[%clk 0:03:00]} 9. O-O-O {[%clk 0:02:36]}  Nc6 {[%clk 0:03:00]} 10. Nb3 {[%clk 0:02:26]}  Be6 {[%clk 0:02:54]} 11. f4 {[%clk 0:02:26]}  a5 {[%clk 0:02:48]} 12. f5 {[%clk 0:02:20]}  Bd7 {[%clk 0:02:47]} 13. h4 {[%clk 0:02:15]}  a4 {[%clk 0:02:46]} 14. Nd2 {[%clk 0:02:00]}  a3 {[%clk 0:02:45]} 15. b3 {[%clk 0:01:59]}  Ne5 {[%clk 0:02:41]} 16. Qg3 {[%clk 0:01:59]}  Rc8 {[%clk 0:02:36]} 17. h5 {[%clk 0:01:41]}  Qa5 {[%clk 0:02:29]} 18. Rh3 {[%clk 0:01:40]}  Rc5 {[%clk 0:01:55]} 19. hxg6 {[%clk 0:01:32]}  fxg6 {[%clk 0:01:54]} 20. Rdh1 {[%clk 0:01:11]}  Rfc8 {[%clk 0:01:52]} 21. Nc4 {[%clk 0:01:11]}  Nxc4 {[%clk 0:01:51]} 22. Bxc4+ {[%clk 0:01:11]}  Rxc4 {[%clk 0:01:49]} 23. bxc4 {[%clk 0:01:12]}  Rxc4 {[%clk 0:01:47]} 24. Qd3 {[%clk 0:00:44]}  Rxc3 {[%clk 0:01:37]} 25. Qxc3 {[%clk 0:00:42]}  Qxc3 {[%clk 0:01:38]} 26. Rxc3 {[%clk 0:00:42]}  Nxe4 {[%clk 0:01:39]} 27. Rc7 {[%clk 0:00:29]}  Bxf5 {[%clk 0:01:36]} 28. Be3 {[%clk 0:00:16]}  Bb2+ {[%clk 0:01:33]} 29. Kd1 {[%clk 0:00:16]}  Nc3+ {[%clk 0:01:30]} 30. Rxc3 {[%clk 0:00:14]}  Bxc3 {[%clk 0:01:30]} 31. Bd2 {[%clk 0:00:14]}  Bd4 {[%clk 0:01:25]} 32. Rh4 {[%clk 0:00:12]}  e5 {[%clk 0:01:25]} 33. Bc1 {[%clk 0:00:12]}  Bc5 {[%clk 0:01:20]} 34. Ra4 {[%clk 0:00:12]}  Be4 {[%clk 0:00:49]} 35. g3 {[%clk 0:00:12]}  b5 {[%clk 0:00:49]} 36. Ra5 {[%clk 0:00:10]}  Bb4 {[%clk 0:00:46]} 37. Bd2 {[%clk 0:00:05]}  Bf3+ {[%clk 0:00:43]} 38. Kc1 {[%clk 0:00:05]}  Bxa5 {[%clk 0:00:43]} 39. Bxa5 {[%clk 0:00:05]}  h5 {[%clk 0:00:41]} 40. Bc7 {[%clk 0:00:05]}  Kf7 {[%clk 0:00:37]} 41. Bxd6 {[%clk 0:00:04]}  Ke6 {[%clk 0:00:38]} 42. Bxa3 {[%clk 0:00:04]}  g5 {[%clk 0:00:39]} 43. Kd2 {[%clk 0:00:05]}  h4 {[%clk 0:00:40]} 44. gxh4 {[%clk 0:00:05]}  gxh4 {[%clk 0:00:40]} 45. Ke3 {[%clk 0:00:06]}  Bd5 {[%clk 0:00:35]} 46. Kf2 {[%clk 0:00:03]}  Kf5 {[%clk 0:00:33]} 47. Be7 {[%clk 0:00:01]}  h3 {[%clk 0:00:32]} 48. Kg3 {[%clk 0:00:02]}  Bg2 {[%clk 0:00:26]} 49. a3 {[%clk 0:00:03]}  Ke4 {[%clk 0:00:25]} 50. Bd6 {[%clk 0:00:03]}  Kd5 {[%clk 0:00:25]} 51. Bb8 {[%clk 0:00:03]}  e4 {[%clk 0:00:21]} 52. Bf4 {[%clk 0:00:03]}  Kc4 {[%clk 0:00:20]} 53. Be5 {[%clk 0:00:02]}  Kd5 {[%clk 0:00:20]} 54. Bf4 {[%clk 0:00:02]}  Kd4 {[%clk 0:00:20]} 55. Kf2 {[%clk 0:00:03]}  Bf3 {[%clk 0:00:18]} 56. Bg5 {[%clk 0:00:02]}  h2 {[%clk 0:00:17]} 57. Bf6+ {[%clk 0:00:03]}  Kd5 {[%clk 0:00:17]} 0-1


[Site "https://www.chess.com"]

[Event "Titled Tuesday Blitz January 03 Late 2023"]
[White "Ehlvest, Jaan"]
[Black "Zakarian, David"]
[WhiteFideId "4500016"]
[BlackFideId "13301276"]
[WhiteElo "2530"]
[BlackElo "2306"]
[Result "1-0"]
[Round "08"]
[TimeControl "180+2"]
[Date "2023.01.03"]
[WhiteClock "0:01:36"]
[BlackClock "0:00:59"]

1. c4 {[%clk 0:03:00]}  Nf6 {[%clk 0:02:57]} 2. g3 {[%clk 0:02:59]}  e6 {[%clk 0:02:55]} 3. Bg2 {[%clk 0:02:58]}  d5 {[%clk 0:02:55]} 4. Nf3 {[%clk 0:02:58]}  Be7 {[%clk 0:02:54]} 5. O-O {[%clk 0:02:57]}  O-O {[%clk 0:02:54]} 6. Qc2 {[%clk 0:02:52]}  c6 {[%clk 0:02:50]} 7. d4 {[%clk 0:02:51]}  a5 {[%clk 0:02:48]} 8. Nc3 {[%clk 0:02:46]}  Na6 {[%clk 0:02:48]} 9. e4 {[%clk 0:02:40]}  b6 {[%clk 0:02:39]} 10. Ne5 {[%clk 0:02:38]}  Bb7 {[%clk 0:02:38]} 11. Rd1 {[%clk 0:02:35]}  Rc8 {[%clk 0:02:32]} 12. Qe2 {[%clk 0:02:31]}  Qc7 {[%clk 0:02:28]} 13. Bf4 {[%clk 0:02:23]}  Bd6 {[%clk 0:02:22]} 14. Rac1 {[%clk 0:02:22]}  Qb8 {[%clk 0:02:19]} 15. b3 {[%clk 0:02:19]}  Rfd8 {[%clk 0:02:03]} 16. exd5 {[%clk 0:01:57]}  cxd5 {[%clk 0:01:56]} 17. Nb5 {[%clk 0:01:55]}  Bxe5 {[%clk 0:01:18]} 18. Bxe5 {[%clk 0:01:48]}  Qa8 {[%clk 0:01:17]} 19. Nd6 {[%clk 0:01:45]}  Rc6 {[%clk 0:01:12]} 20. Nxb7 {[%clk 0:01:41]}  Qxb7 {[%clk 0:01:13]} 21. Bxf6 {[%clk 0:01:40]}  gxf6 {[%clk 0:01:14]} 22. cxd5 {[%clk 0:01:39]}  exd5 {[%clk 0:01:07]} 23. Rxc6 {[%clk 0:01:37]}  Qxc6 {[%clk 0:00:59]} 24. Qxa6 {[%clk 0:01:36]} 1-0


[Site "https://www.chess.com"]

[Event "Titled Tuesday Blitz January 03 Late 2023"]
[White "Janaszak, Dawid"]
[Black "Estrada Nieto, Julian"]
[WhiteFideId "1119206"]
[BlackFideId "5101018"]
[WhiteElo "2316"]
[BlackElo "2215"]
[Result "1-0"]
[Round "08"]
[TimeControl "180+2"]
[Date "2023.01.03"]
[WhiteClock "0:00:14"]
[BlackClock "0:00:14"]

1. e4 {[%clk 0:02:59]}  e5 {[%clk 0:02:59]} 2. Nf3 {[%clk 0:02:56]}  Nc6 {[%clk 0:03:00]} 3. d4 {[%clk 0:02:54]}  exd4 {[%clk 0:02:59]} 4. Nxd4 {[%clk 0:02:55]}  Nf6 {[%clk 0:02:57]} 5. Nxc6 {[%clk 0:02:54]}  bxc6 {[%clk 0:02:58]} 6. Nd2 {[%clk 0:02:50]}  d5 {[%clk 0:02:55]} 7. exd5 {[%clk 0:02:50]}  cxd5 {[%clk 0:02:55]} 8. Bb5+ {[%clk 0:02:48]}  Bd7 {[%clk 0:02:56]} 9. Bxd7+ {[%clk 0:02:48]}  Qxd7 {[%clk 0:02:56]} 10. O-O {[%clk 0:02:48]}  Be7 {[%clk 0:02:56]} 11. b3 {[%clk 0:02:48]}  O-O {[%clk 0:02:55]} 12. Bb2 {[%clk 0:02:49]}  c5 {[%clk 0:02:55]} 13. Nf3 {[%clk 0:02:44]}  Rfe8 {[%clk 0:02:41]} 14. Qd3 {[%clk 0:02:42]}  a5 {[%clk 0:02:22]} 15. Rad1 {[%clk 0:02:39]}  d4 {[%clk 0:02:17]} 16. c3 {[%clk 0:02:31]}  a4 {[%clk 0:01:53]} 17. cxd4 {[%clk 0:02:30]}  axb3 {[%clk 0:01:52]} 18. axb3 {[%clk 0:02:28]}  cxd4 {[%clk 0:01:47]} 19. Qxd4 {[%clk 0:02:24]}  Qxd4 {[%clk 0:01:46]} 20. Bxd4 {[%clk 0:02:20]}  Reb8 {[%clk 0:01:40]} 21. Rb1 {[%clk 0:02:10]}  Nd5 {[%clk 0:01:40]} 22. Rfd1 {[%clk 0:02:01]}  Nb4 {[%clk 0:01:32]} 23. g3 {[%clk 0:01:48]}  f6 {[%clk 0:01:28]} 24. Rdc1 {[%clk 0:01:39]}  Rb7 {[%clk 0:01:27]} 25. Re1 {[%clk 0:01:14]}  Kf7 {[%clk 0:01:26]} 26. Kg2 {[%clk 0:01:07]}  Rab8 {[%clk 0:01:16]} 27. Nd2 {[%clk 0:00:51]}  Nd5 {[%clk 0:01:03]} 28. Rec1 {[%clk 0:00:43]}  Bb4 {[%clk 0:00:55]} 29. Ne4 {[%clk 0:00:43]}  h6 {[%clk 0:00:51]} 30. Bc5 {[%clk 0:00:41]}  Kg6 {[%clk 0:00:36]} 31. h4 {[%clk 0:00:36]}  Bxc5 {[%clk 0:00:26]} 32. Nxc5 {[%clk 0:00:35]}  Rb5 {[%clk 0:00:26]} 33. Rc4 {[%clk 0:00:31]}  h5 {[%clk 0:00:20]} 34. Rbc1 {[%clk 0:00:23]}  Ne7 {[%clk 0:00:16]} 35. Ra1 {[%clk 0:00:17]}  Rc8 {[%clk 0:00:13]} 36. Ra7 {[%clk 0:00:12]}  Rcxc5 {[%clk 0:00:12]} 37. Rxe7 {[%clk 0:00:10]}  Rxc4 {[%clk 0:00:11]} 38. bxc4 {[%clk 0:00:11]}  Rc5 {[%clk 0:00:12]} 39. Re4 {[%clk 0:00:11]}  Kf5 {[%clk 0:00:12]} 40. Kf3 {[%clk 0:00:11]}  g5 {[%clk 0:00:12]} 41. hxg5 {[%clk 0:00:11]}  fxg5 {[%clk 0:00:12]} 42. Ke3 {[%clk 0:00:11]}  g4 {[%clk 0:00:12]} 43. Rd4 {[%clk 0:00:10]}  Re5+ {[%clk 0:00:12]} 44. Kd3 {[%clk 0:00:10]}  Ra5 {[%clk 0:00:12]} 45. Rd5+ {[%clk 0:00:10]}  Rxd5+ {[%clk 0:00:12]} 46. cxd5 {[%clk 0:00:11]}  Ke5 {[%clk 0:00:13]} 47. Kc4 {[%clk 0:00:11]}  Kd6 {[%clk 0:00:13]} 48. Kd4 {[%clk 0:00:12]}  Kd7 {[%clk 0:00:12]} 49. Ke5 {[%clk 0:00:12]}  Ke7 {[%clk 0:00:13]} 50. Kf5 {[%clk 0:00:12]}  Kd6 {[%clk 0:00:13]} 51. Kg5 {[%clk 0:00:13]}  Kxd5 {[%clk 0:00:14]} 52. Kxh5 {[%clk 0:00:14]} 1-0


[Site "https://www.chess.com"]